bitfinex/quotes_BTCUSD_20260110
["timestamp","ask_amount","ask_price","bid_price","bid_amount"]
[1768030025879,0.0001515,90586.0,90581.0,0.01103984]
[1768030027154,0.0001515,90586.0,90583.0,0.01103959]
[1768030027320,0.0001515,90586.0,90581.0,0.01103984]
[1768030027699,0.0001515,90586.0,90583.0,0.05799574]
[1768030027952,5e-07,90586.0,90585.0,0.10215292]
[1768030028123,5e-07,90586.0,90585.0,0.10208468]
[1768030029946,5e-07,90586.0,90585.0,0.05512853]
[1768030030560,5e-07,90586.0,90585.0,0.10208468]
[1768030037645,5e-07,90586.0,90585.0,0.04673715]
[1768030037820,5e-07,90586.0,90583.0,0.01103959]
[1768030038876,5e-07,90586.0,90585.0,0.05519677]
[1768030040284,5e-07,90586.0,90584.0,0.05519721]
[1768030040487,5e-07,90586.0,90583.0,0.11319261]
[1768030040926,5e-07,90586.0,90585.0,0.05519677]
[1768030041082,5e-07,90586.0,90583.0,0.05799574]
[1768030041955,5e-07,90586.0,90584.0,0.05519684]
[1768030042158,5e-07,90586.0,90585.0,0.05512853]
[1768030042918,5e-07,90586.0,90584.0,0.05519721]
[1768030043966,5e-07,90586.0,90585.0,0.05519677]
[1768030045438,5e-07,90586.0,90584.0,0.10215336]
[1768030045644,5e-07,90586.0,90585.0,0.05519677]
[1768030046234,5e-07,90586.0,90585.0,0.10215292]
[1768030051731,5e-07,90586.0,90585.0,0.05519677]
[1768030053266,5e-07,90586.0,90584.0,0.10138369]
[1768030053807,5e-07,90586.0,90585.0,0.05519677]
[1768030054911,5e-07,90586.0,90584.0,0.10138422]
[1768030058778,5e-07,90586.0,90584.0,0.04618685]
[1768030060194,5e-07,90586.0,90584.0,0.10138381]
[1768030062514,5e-07,90586.0,90584.0,0.04618685]
[1768030063139,5e-07,90586.0,90584.0,0.04614179]
[1768030063722,5e-07,90586.0,90584.0,0.10133909]
[1768030064325,5e-07,90586.0,90584.0,0.04614179]
[1768030064701,5e-07,90586.0,90582.0,0.04618685]
[1768030064947,5e-07,90586.0,90582.0,0.05722657]
[1768030065289,5e-07,90586.0,90583.0,0.05722644]
[1768030066394,5e-07,90586.0,90579.0,0.02212]
[1768030066623,5e-07,90586.0,90581.0,0.01103984]
[1768030066829,5e-07,90586.0,90580.0,0.01103996]
[1768030067451,5e-07,90586.0,90579.0,0.03316008]
[1768030068042,5e-07,90586.0,90580.0,0.01103996]
[1768030068661,5e-07,90586.0,90581.0,0.01103984]
[1768030068985,5e-07,90586.0,90582.0,0.01103972]
[1768030069208,5e-07,90586.0,90583.0,0.01103959]
[1768030069682,5e-07,90586.0,90582.0,0.01103972]
[1768030070811,5e-07,90586.0,90581.0,0.01103984]
[1768030070975,5e-07,90586.0,90582.0,0.01103972]
[1768030071177,5e-07,90586.0,90583.0,0.01103959]
[1768030073205,5e-07,90586.0,90582.0,0.01103972]
[1768030075299,5e-07,90586.0,90583.0,0.05705397]
[1768030075796,5e-07,90586.0,90583.0,0.01103959]
[1768030077689,5e-07,90586.0,90584.0,0.04601438]
[1768030078030,5e-07,90586.0,90583.0,0.01103959]
[1768030078446,5e-07,90586.0,90583.0,0.05705397]
[1768030080415,5e-07,90586.0,90583.0,0.11225196]
[1768030080914,5e-07,90586.0,90583.0,0.05705397]
[1768030081119,5e-07,90586.0,90583.0,0.11225186]
[1768030081556,5e-07,90586.0,90583.0,0.05705397]
[1768030088482,5e-07,90586.0,90583.0,0.01103959]
[1768030088692,5e-07,90586.0,90583.0,0.06623751]
[1768030091706,5e-07,90586.0,90584.0,0.02212]
[1768030122887,5e-07,90586.0,90585.0,0.04578785]
[1768030124429,5e-07,90586.0,90585.0,0.10098462]
[1768030125430,0.0001515,90595.0,90592.0,0.0110385]
[1768030125646,0.0001515,90595.0,90591.0,0.01103862]
[1768030126315,0.0001515,90595.0,90590.0,0.05519356]
[1768030126522,0.0001515,90595.0,90591.0,0.04578785]
[1768030126729,5e-07,90595.0,90592.0,0.05682635]
[1768030127125,5e-07,90595.0,90592.0,0.0110385]
[1768030128362,0.0300005,90595.0,90592.0,0.0110385]
[1768030129361,0.03,90594.0,90592.0,0.0110385]
[1768030129565,5e-07,90595.0,90594.0,0.000848]
[1768030129942,5e-07,90595.0,90594.0,0.00080295]
[1768030130249,5e-07,90595.0,90592.0,0.0110385]
[1768030138708,5e-07,90595.0,90592.0,0.06623049]
[1768030139627,5e-07,90595.0,90593.0,0.05519188]
[1768030140354,5e-07,90595.0,90592.0,0.06623094]
[1768030141207,5e-07,90595.0,90594.0,0.05519129]
[1768030141353,5e-07,90595.0,90594.0,0.10445536]
[1768030141901,5e-07,90595.0,90594.0,0.05519129]
[1768030142084,5e-07,90595.0,90594.0,0.10445536]
[1768030142449,5e-07,90595.0,90594.0,0.04926407]
[1768030144890,5e-07,90595.0,90592.0,0.06623048]
[1768030144891,5e-07,90595.0,90591.0,0.01103862]
[1768030145097,5e-07,90595.0,90592.0,0.05519198]
[1768030145304,5e-07,90595.0,90592.0,0.0110385]
[1768030145886,5e-07,90595.0,90593.0,0.04981935]
[1768030147745,5e-07,90595.0,90594.0,0.04981935]
[1768030147947,5e-07,90595.0,90594.0,0.04972948]
[1768030164631,5e-07,90595.0,90594.0,0.05519129]
[1768030164838,5e-07,90595.0,90594.0,0.04981935]
[1768030167853,5e-07,90595.0,90592.0,0.06623097]
[1768030168702,5e-07,90595.0,90593.0,0.04981935]
[1768030169894,5e-07,90595.0,90594.0,0.04981935]
[1768030172134,5e-07,90595.0,90592.0,0.0110385]
[1768030172336,5e-07,90595.0,90593.0,0.04981935]
[1768030173066,0.03,90603.0,90599.0,0.04981935]
[1768030173239,0.03,90603.0,90602.0,0.04596821]
[1768030173438,0.03,90603.0,90602.0,0.04589998]
[1768030175208,0.03,90611.0,90602.0,0.04589998]
[1768030175395,0.03035249,90611.0,90602.0,0.04589998]
[1768030177885,0.03035249,90611.0,90602.0,0.04581012]
[1768030180884,0.03035249,90611.0,90602.0,0.0568474]
[1768030182157,0.03035249,90611.0,90602.0,0.04581012]
[1768030184688,0.03,90610.0,90602.0,0.0568474]
[1768030184891,0.03,90610.0,90606.0,0.04596821]
[1768030185551,0.00035249,90611.0,90606.0,0.04596821]
[1768030188125,0.00035249,90611.0,90608.0,0.01103655]
[1768030188334,0.00035249,90611.0,90608.0,0.06621905]
[1768030188549,0.00035249,90611.0,90608.0,0.01103655]
[1768030189943,0.00035249,90611.0,90607.0,0.05700488]
[1768030190834,0.00035249,90611.0,90608.0,0.01103655]
[1768030191244,0.00035249,90611.0,90607.0,0.04596821]
[1768030192685,0.00035249,90611.0,90607.0,0.05700488]
[1768030194301,0.00035249,90611.0,90607.0,0.05691501]
[1768030194652,0.00035249,90611.0,90607.0,0.04587834]
[1768030200556,0.00035249,90611.0,90607.0,0.05691501]
[1768030200778,0.00035249,90611.0,90609.0,0.04518257]
[1768030201992,0.00035249,90611.0,90610.0,0.10036411]
[1768030202191,0.00035249,90611.0,90610.0,0.04518257]
[1768030202393,0.0001515,90613.0,90612.0,0.04518257]
[1768030202620,5.105e-05,90613.0,90612.0,0.04518257]
[1768030204200,5.105e-05,90613.0,90612.0,0.04483557]
[1768030204345,0.03005105,90613.0,90612.0,0.04483557]
[1768030205250,5.105e-05,90613.0,90612.0,0.04483557]
[1768030207808,5.105e-05,90613.0,90612.0,0.04474571]
[1768030208866,5.105e-05,90613.0,90612.0,0.04467748]
[1768030213499,0.00302437,90612.0,90608.0,0.01103655]
[1768030213700,0.00302437,90612.0,90609.0,0.01103643]
[1768030214353,0.00302437,90612.0,90608.0,0.01103655]
[1768030214893,0.00302437,90612.0,90609.0,0.01103643]
[1768030216019,5.105e-05,90613.0,90609.0,0.01103643]
[1768030216223,5.105e-05,90613.0,90610.0,0.04708408]
[1768030216663,5.105e-05,90613.0,90610.0,0.05812038]
[1768030216871,5e-08,90613.0,90610.0,0.05812038]
[1768030221850,5e-08,90613.0,90610.0,0.04708408]
[1768030222210,5e-08,90613.0,90610.0,0.05812038]
[1768030222807,5e-08,90613.0,90610.0,0.05803051]
[1768030224957,5e-08,90613.0,90610.0,0.04699421]
[1768030225412,5e-08,90613.0,90610.0,0.05803051]
[1768030225618,5e-08,90613.0,90610.0,0.04699421]
[1768030226413,5e-08,90613.0,90610.0,0.05803051]
[1768030226862,5e-08,90613.0,90610.0,0.04699421]
[1768030227969,5e-08,90613.0,90610.0,0.05803051]
[1768030229090,5e-08,90613.0,90612.0,0.1022644]
[1768030232832,0.00039,90617.0,90610.0,0.06621774]
[1768030232833,0.00039,90617.0,90616.0,0.04708408]
[1768030234580,0.00350424,90617.0,90614.0,0.01103582]
[1768030234878,0.00311424,90617.0,90614.0,0.01103582]
[1768030235081,0.00023305,90619.0,90616.0,0.01103557]
[1768030235314,1e-08,90619.0,90618.0,0.05517667]
[1768030240645,1e-08,90619.0,90618.0,0.1012059]
[1768030241144,1e-08,90619.0,90618.0,0.04602923]
[1768030255887,1e-08,90619.0,90618.0,0.04525349]
[1768030256769,1e-08,90619.0,90618.0,0.10043016]
[1768030257065,1e-08,90619.0,90618.0,0.04525349]
[1768030260681,1e-08,90619.0,90618.0,0.10043016]
[1768030261708,1e-08,90619.0,90618.0,0.04525349]
[1768030263542,1e-08,90619.0,90607.0,0.01103667]
[1768030263729,0.000441,90618.0,90608.0,0.04726658]
[1768030264169,0.03,90613.0,90605.0,0.02208]
[1768030264387,0.04103618,90611.0,90605.0,0.02208]
[1768030264595,0.03,90607.0,90596.0,0.04726658]
[1768030264802,0.0110363,90610.0,90591.0,0.04726658]
[1768030264803,0.030441,90605.0,90591.0,0.04726658]
[1768030265033,0.03,90600.0,90593.0,0.03312254]
[1768030265240,0.03,90600.0,90590.0,0.0001515]
[1768030265448,0.03,90596.0,90590.0,0.0001515]
[1768030265693,0.03,90596.0,90591.0,0.05]
[1768030265896,0.03,90596.0,90591.0,0.049559]
[1768030266457,0.03,90595.0,90591.0,0.049559]
[1768030267530,0.03,90594.0,90591.0,0.049559]
[1768030268601,0.03,90593.0,90591.0,0.049559]
[1768030269660,0.04103764,90599.0,90591.0,0.049559]
[1768030269806,0.03,90597.0,90591.0,0.049559]
[1768030270980,0.03,90596.0,90591.0,0.049559]
[1768030272004,0.03,90595.0,90591.0,0.049559]
[1768030273044,0.03,90599.0,90591.0,0.049559]
[1768030273245,0.04103764,90599.0,90591.0,0.049559]
[1768030273447,0.03,90599.0,90591.0,0.049559]
[1768030274065,0.03,90600.0,90591.0,0.049559]
[1768030275102,0.03,90599.0,90591.0,0.049559]
[1768030276168,0.03,90598.0,90591.0,0.049559]
[1768030277192,0.03,90597.0,90591.0,0.049559]
[1768030278217,0.03,90596.0,90591.0,0.049559]
[1768030279309,0.03,90595.0,90591.0,0.049559]
[1768030280538,0.03,90594.0,90591.0,0.049559]
[1768030281750,0.0410374,90601.0,90591.0,0.049559]
[1768030282166,0.03,90599.0,90591.0,0.049559]
[1768030282457,0.04103764,90599.0,90591.0,0.049559]
[1768030282658,0.03,90599.0,90591.0,0.049559]
[1768030283182,0.04393969,90602.0,90591.0,0.049559]
[1768030283183,0.03,90598.0,90591.0,0.049559]
[1768030284273,0.03,90600.0,90591.0,0.049559]
[1768030284897,0.03,90600.0,90591.0,0.04960955]
[1768030285260,0.03,90599.0,90591.0,0.04960955]
[1768030285464,0.03,90599.0,90591.0,0.06064817]
[1768030286296,0.03,90598.0,90591.0,0.06064817]
[1768030286503,0.03,90598.0,90592.0,0.0110385]
[1768030287418,0.03,90597.0,90592.0,0.05830508]
[1768030287564,0.03,90597.0,90592.0,0.04726658]
[1768030288404,0.03,90596.0,90592.0,0.04726658]
[1768030289638,0.03,90602.0,90592.0,0.04726658]
[1768030291839,0.03,90600.0,90592.0,0.04726658]
[1768030293017,0.03311716,90603.0,90592.0,0.04726658]
[1768030293018,0.03,90602.0,90592.0,0.04726658]
[1768030293677,0.03,90600.0,90592.0,0.04726658]
[1768030294848,0.03,90602.0,90592.0,0.04726658]
[1768030300246,0.03,90602.0,90592.0,0.05830508]
[1768030302397,0.03,90602.0,90592.0,0.04726658]
[1768030302897,0.03,90602.0,90592.0,0.05830508]
[1768030303461,0.03,90602.0,90593.0,0.01103838]
[1768030304363,0.03,90602.0,90592.0,0.04726658]
[1768030306535,0.03,90598.0,90592.0,0.04726658]
[1768030306891,0.03,90596.0,90592.0,0.04726658]
[1768030307902,0.01103813,90595.0,90592.0,0.04726658]
[1768030308197,0.03,90594.0,90592.0,0.04726658]
[1768030309123,0.03,90593.0,90592.0,0.04726658]
[1768030312635,0.03,90595.0,90592.0,0.04726658]
[1768030314132,0.03,90594.0,90592.0,0.04726658]
[1768030315233,0.01103789,90597.0,90592.0,0.04726658]
[1768030315234,0.03,90593.0,90592.0,0.04726658]
[1768030317323,0.03,90595.0,90592.0,0.04726658]
[1768030318536,0.03,90594.0,90592.0,0.04726658]
[1768030319488,0.03,90593.0,90592.0,0.04726658]
[1768030320162,0.03311716,90603.0,90592.0,0.04726658]
[1768030320361,0.01103752,90600.0,90592.0,0.04726658]
[1768030320567,0.03,90599.0,90592.0,0.04726658]
[1768030321064,0.04103764,90599.0,90592.0,0.04726658]
[1768030321277,0.03,90597.0,90592.0,0.04726658]
[1768030322206,0.04103764,90599.0,90592.0,0.04726658]
[1768030322390,0.03,90597.0,90592.0,0.04726658]
[1768030322884,0.01103728,90602.0,90592.0,0.04726658]
[1768030323210,0.0110374,90601.0,90592.0,0.04726658]
[1768030323692,0.03,90598.0,90592.0,0.04726658]
[1768030324645,0.03,90599.0,90592.0,0.04726658]
[1768030325572,0.03,90598.0,90592.0,0.04726658]
[1768030326684,0.03,90597.0,90592.0,0.04726658]
[1768030326830,0.03311716,90603.0,90592.0,0.04726658]
[1768030327462,0.02208,90603.0,90592.0,0.04726658]
[1768030327661,0.03,90602.0,90592.0,0.04726658]
[1768030327862,0.03,90600.0,90592.0,0.04726658]
[1768030329155,0.03,90599.0,90592.0,0.04726658]
[1768030330017,0.03,90598.0,90592.0,0.04726658]
[1768030331003,0.03,90597.0,90592.0,0.04726658]
[1768030332271,0.03,90596.0,90592.0,0.04726658]
[1768030332438,0.02208,90603.0,90592.0,0.04726658]
[1768030332637,0.02208,90603.0,90596.0,0.000999]
[1768030333016,0.02208,90603.0,90592.0,0.05830508]
[1768030333190,0.03,90602.0,90592.0,0.05830508]
[1768030333392,0.02208,90601.0,90592.0,0.05830508]
[1768030333621,0.03,90600.0,90592.0,0.04726658]
[1768030334041,0.03,90600.0,90592.0,0.05830508]
[1768030334503,0.02208,90601.0,90592.0,0.05830508]
[1768030335751,0.02208,90601.0,90592.0,0.04726658]
[1768030335947,0.01103679,90606.0,90592.0,0.05830508]
[1768030336154,0.03,90604.0,90592.0,0.04726658]
[1768030336921,0.03,90604.0,90592.0,0.05830508]
[1768030337452,0.05208,90603.0,90593.0,0.01103838]
[1768030338015,0.05208,90603.0,90594.0,0.01103825]
[1768030338275,0.05208,90603.0,90592.0,0.05830508]
[1768030338500,0.05208,90603.0,90592.0,0.04726658]
[1768030338631,0.05208,90603.0,90592.0,0.05830508]
[1768030339937,0.03,90603.0,90592.0,0.05830508]
[1768030340154,0.05208,90602.0,90592.0,0.05830508]
[1768030340313,0.05208,90602.0,90593.0,0.01103838]
[1768030340903,0.05208,90602.0,90592.0,0.05830508]
[1768030341102,0.05208,90602.0,90592.0,0.04726658]
[1768030341350,0.05208,90602.0,90592.0,0.05830508]
[1768030341521,0.03,90601.0,90592.0,0.05830508]
[1768030341941,0.03,90599.0,90592.0,0.05830508]
[1768030342779,0.03,90599.0,90593.0,0.01103838]
[1768030343096,0.03,90599.0,90592.0,0.05830508]
[1768030343621,0.03,90599.0,90592.0,0.04726658]
[1768030343899,0.03,90599.0,90593.0,0.01103838]
[1768030345163,0.03,90599.0,90592.0,0.04726658]
[1768030346210,0.03,90599.0,90591.0,0.06064817]
[1768030346439,0.03,90599.0,90592.0,0.04717615]
[1768030347687,0.03,90599.0,90593.0,0.01103838]
[1768030347891,0.03,90599.0,90592.0,0.05821465]
[1768030348437,0.03,90599.0,90593.0,0.01103838]
[1768030348638,0.03,90599.0,90592.0,0.05821465]
[1768030349392,0.03,90599.0,90593.0,0.01103838]
[1768030349554,0.03,90599.0,90592.0,0.05821465]
[1768030350705,0.03,90599.0,90592.0,0.04717615]
[1768030351105,0.03,90599.0,90592.0,0.05821465]
[1768030351670,0.03,90599.0,90592.0,0.04717615]
[1768030351845,0.03,90599.0,90592.0,0.05821465]
[1768030352904,0.03,90599.0,90592.0,0.04717615]
[1768030353118,0.03,90599.0,90592.0,0.05821465]
[1768030353325,0.03,90599.0,90592.0,0.04717615]
[1768030353550,0.03,90599.0,90592.0,0.05821465]
[1768030353953,0.03,90599.0,90592.0,0.04717615]
[1768030356328,0.03,90599.0,90592.0,0.05821465]
[1768030356992,0.03,90599.0,90593.0,0.01103838]
[1768030357126,0.03,90599.0,90592.0,0.05821465]
[1768030357332,0.03,90599.0,90593.0,0.01103838]
[1768030357600,0.03,90599.0,90592.0,0.05821465]
[1768030358630,0.03,90599.0,90592.0,0.04717615]
[1768030359246,0.03,90599.0,90592.0,0.05821465]
[1768030360531,0.03,90599.0,90593.0,0.01103838]
[1768030360732,0.02208,90600.0,90593.0,0.01103838]
[1768030360934,0.03,90603.0,90600.0,0.05005385]
[1768030361182,0.06290241,90599.0,90596.0,0.01103801]
[1768030361922,0.00412937,90603.0,90599.0,0.000999]
[1768030362330,0.03412937,90603.0,90596.0,0.01103801]
[1768030362668,0.03412937,90603.0,90597.0,0.01103789]
[1768030362890,0.03412937,90603.0,90596.0,0.01103801]
[1768030363092,0.03,90603.0,90596.0,0.01103801]
[1768030363569,0.03,90603.0,90597.0,0.01103789]
[1768030363774,0.03,90603.0,90596.0,0.01103801]
[1768030364041,0.03,90603.0,90597.0,0.01103789]
[1768030364799,0.03,90603.0,90596.0,0.01103801]
[1768030365013,0.03,90603.0,90597.0,0.01103789]
[1768030365220,0.03,90603.0,90598.0,0.01103777]
[1768030365419,0.03,90603.0,90597.0,0.01103789]
[1768030365596,0.03,90603.0,90596.0,0.01103801]
[1768030366844,0.03,90603.0,90597.0,0.01103789]
[1768030367043,0.03,90603.0,90596.0,0.01103801]
[1768030367273,0.03,90603.0,90602.0,0.00054607]
[1768030368416,0.03,90603.0,90602.0,0.04951102]
[1768030368865,0.03,90610.0,90602.0,0.04951102]
[1768030369050,0.0410363,90610.0,90602.0,0.04905485]
[1768030369229,0.03,90610.0,90602.0,0.04905485]
[1768030369534,0.0410363,90610.0,90602.0,0.04905485]
[1768030369732,0.03,90610.0,90602.0,0.04905485]
[1768030370293,0.03,90608.0,90602.0,0.04905485]
[1768030371118,0.03,90607.0,90602.0,0.04905485]
[1768030371758,0.03,90607.0,90602.0,0.0489039]
[1768030372137,0.03,90606.0,90602.0,0.0489039]
[1768030373376,0.03,90605.0,90602.0,0.0489039]
[1768030374298,0.03,90609.0,90602.0,0.0489039]
[1768030375264,0.03,90609.0,90602.0,0.04875297]
[1768030375855,0.03,90608.0,90602.0,0.04875297]
[1768030376836,0.02208,90610.0,90602.0,0.04875297]
[1768030376837,0.03,90607.0,90602.0,0.04875297]
[1768030377840,0.03,90606.0,90602.0,0.04875297]
[1768030379119,0.03,90605.0,90602.0,0.04875297]
[1768030379616,0.03,90605.0,90604.0,0.00044645]
[1768030379790,0.03,90605.0,90604.0,0.04815078]
[1768030383699,0.03,90605.0,90592.0,0.0331185]
[1768030383876,0.04103716,90603.0,90592.0,0.02208]
[1768030384344,0.03,90601.0,90592.0,0.02208]
[1768030384972,0.03,90598.0,90592.0,0.02208]
[1768030385178,0.04103777,90598.0,90592.0,0.02208]
[1768030385433,0.03,90595.0,90592.0,0.02208]
[1768030386167,0.03,90595.0,90590.0,0.0001515]
[1768030386628,0.03,90594.0,90590.0,0.0001515]
[1768030387551,0.04103789,90597.0,90590.0,0.0001515]
[1768030387708,0.03,90597.0,90590.0,0.0001515]
[1768030387873,0.04103789,90597.0,90590.0,0.0001515]
[1768030388069,0.03,90597.0,90590.0,0.0001515]
[1768030388520,0.03,90593.0,90590.0,0.0001515]
[1768030388700,0.06275784,90592.0,90590.0,0.0001515]
[1768030389103,0.06175884,90592.0,90590.0,0.0001515]
[1768030391093,0.01103716,90603.0,90590.0,0.0001515]
[1768030391309,0.03,90602.0,90590.0,0.0001515]
[1768030391710,0.04103728,90602.0,90590.0,0.0001515]
[1768030391918,0.03,90599.0,90590.0,0.0001515]
[1768030392324,0.03,90599.0,90592.0,0.0110385]
[1768030392881,0.03,90604.0,90592.0,0.0110385]
[1768030393081,0.03,90604.0,90593.0,0.01103838]
[1768030393498,0.03,90604.0,90594.0,0.01103825]
[1768030393705,0.03,90604.0,90593.0,0.01103838]
[1768030393906,0.03,90603.0,90596.0,0.04632748]
[1768030394936,0.03,90607.0,90596.0,0.04632748]
[1768030395869,0.03,90606.0,90596.0,0.05736549]
[1768030396169,0.03,90606.0,90602.0,0.04632748]
[1768030397024,0.04103618,90611.0,90602.0,0.04632748]
[1768030397428,0.03,90609.0,90602.0,0.04632748]
[1768030398393,0.03,90608.0,90602.0,0.04632748]
[1768030399345,0.03,90607.0,90602.0,0.04632748]
[1768030400598,0.03,90606.0,90602.0,0.04632748]
[1768030401655,0.03,90605.0,90602.0,0.04632748]
[1768030402693,0.03,90604.0,90602.0,0.04632748]
[1768030403775,0.03,90611.0,90602.0,0.04632748]
[1768030404105,0.04103618,90611.0,90602.0,0.04632748]
[1768030404307,0.03,90611.0,90602.0,0.04632748]
[1768030406270,0.03,90610.0,90602.0,0.04632748]
[1768030407254,0.03,90612.0,90602.0,0.04632748]
[1768030407472,0.03,90612.0,90602.0,0.04617655]
[1768030408434,0.03,90611.0,90602.0,0.04617655]
[1768030409484,0.03,90610.0,90602.0,0.04617655]
[1768030410598,0.03,90609.0,90602.0,0.04617655]
[1768030411581,0.03,90608.0,90602.0,0.04617655]
[1768030412590,0.03,90607.0,90602.0,0.04617655]
[1768030413693,0.04103582,90614.0,90602.0,0.04617655]
[1768030414123,0.03,90614.0,90602.0,0.04617655]
[1768030414327,0.04103582,90614.0,90602.0,0.04617655]
[1768030415677,0.03,90614.0,90602.0,0.04617655]
[1768030416179,0.00050235,90612.0,90602.0,0.04617655]
[1768030416500,0.03050235,90612.0,90602.0,0.06825655]
[1768030416659,0.03050235,90612.0,90603.0,0.04503184]
[1768030417380,0.00050235,90612.0,90603.0,0.04503184]
[1768030419821,0.03050235,90612.0,90603.0,0.04503184]
[1768030420720,0.03,90611.0,90603.0,0.04503184]
[1768030421730,0.00050235,90612.0,90603.0,0.04503184]
[1768030422578,0.00050235,90612.0,90603.0,0.056069]
[1768030422778,0.00050235,90612.0,90603.0,0.04503184]
[1768030423361,0.00050235,90612.0,90603.0,0.056069]
[1768030423871,0.00050235,90612.0,90606.0,0.04503184]
[1768030424076,0.00050235,90612.0,90608.0,0.04503184]
[1768030428326,0.00050235,90612.0,90608.0,0.05606839]
[1768030428921,0.00050235,90612.0,90610.0,0.04503184]
[1768030429692,0.00050235,90612.0,90611.0,0.10021277]
[1768030429845,0.0001515,90622.0,90614.0,0.05606766]
[1768030430046,0.0001515,90622.0,90615.0,0.04503184]
[1768030430245,0.0001515,90622.0,90615.0,0.05606754]
[1768030430617,0.0001515,90622.0,90615.0,0.04503184]
[1768030431467,0.0001515,90622.0,90615.0,0.05606754]
[1768030431628,0.0001515,90622.0,90617.0,0.04861681]
[1768030432730,0.0001515,90622.0,90619.0,0.04861681]
[1768030433957,0.0001515,90622.0,90615.0,0.0110357]
[1768030434156,0.0001515,90622.0,90612.0,0.04861681]
[1768030434157,0.0001515,90622.0,90616.0,0.04861681]
[1768030434512,0.0001515,90622.0,90618.0,0.04861681]
[1768030435713,0.0001515,90622.0,90619.0,0.05965202]
[1768030435910,0.0001515,90622.0,90619.0,0.04861681]
[1768030436633,0.03,90627.0,90623.0,0.05965153]
[1768030436829,0.03,90627.0,90625.0,0.04861681]
[1768030437066,0.03,90627.0,90623.0,0.04861681]
[1768030437251,0.0001515,90631.0,90626.0,0.04861681]
[1768030437456,0.00021369,90631.0,90626.0,0.04861681]
[1768030437871,0.00021916,90630.0,90627.0,0.00046559]
[1768030438859,0.00021369,90631.0,90627.0,0.00046559]
[1768030439080,0.00021369,90631.0,90627.0,0.0490824]
[1768030440239,0.00021369,90631.0,90627.0,0.06011663]
[1768030440422,0.00021369,90631.0,90629.0,0.04861681]
[1768030440629,0.00021369,90631.0,90630.0,0.04861681]
[1768030440914,0.00021916,90630.0,90629.0,0.05516974]
[1768030441511,0.00021369,90631.0,90630.0,0.05516936]
[1768030441689,0.00021369,90631.0,90629.0,0.05516962]
[1768030441871,0.00021369,90631.0,90629.0,0.05516997]
[1768030442057,0.00021369,90631.0,90630.0,0.05516936]
[1768030442501,0.00021916,90634.0,90632.0,0.01103363]
[1768030442704,0.0004,90635.0,90632.0,0.01103363]
[1768030443055,0.0004,90635.0,90632.0,0.06620164]
[1768030443311,0.0004,90635.0,90632.0,0.01103363]
[1768030444710,0.0004,90635.0,90632.0,0.06620177]
[1768030444905,0.0004,90635.0,90632.0,0.05653139]
[1768030445737,0.0004,90635.0,90633.0,0.04549776]
[1768030445897,0.0001515,90640.0,90633.0,0.05516754]
[1768030446100,0.0001515,90640.0,90635.0,0.04549776]
[1768030446304,0.0001515,90640.0,90635.0,0.04449876]
[1768030446535,0.0301515,90640.0,90635.0,0.04449876]
[1768030446736,0.0301515,90640.0,90632.0,0.02208]
[1768030447532,0.0001515,90640.0,90632.0,0.02208]
[1768030448532,0.0001515,90640.0,90632.0,0.06757776]
[1768030449227,0.0001515,90640.0,90633.0,0.04549776]
[1768030450545,0.0301515,90640.0,90633.0,0.04549776]
[1768030451173,0.0301515,90640.0,90634.0,0.05653114]
[1768030451347,0.0301515,90640.0,90634.0,0.04549776]
[1768030451544,0.0001515,90640.0,90634.0,0.04549776]
[1768030451764,0.0001515,90640.0,90634.0,0.05653114]
[1768030451961,0.0001515,90640.0,90634.0,0.04549776]
[1768030453983,0.0301515,90640.0,90634.0,0.04549776]
[1768030454877,0.0301515,90640.0,90634.0,0.05653114]
[1768030455087,0.03,90639.0,90634.0,0.05653114]
[1768030455287,0.03,90639.0,90636.0,0.04549776]
[1768030456212,0.03,90638.0,90636.0,0.04549776]
[1768030456411,0.0001515,90640.0,90639.0,0.04549776]
[1768030456990,0.0001515,90640.0,90639.0,0.06757776]
[1768030457191,5e-07,90640.0,90639.0,0.06757776]
[1768030457571,5e-07,90640.0,90639.0,0.12274165]
[1768030457777,5e-07,90640.0,90639.0,0.02208]
[1768030458158,5e-07,90640.0,90639.0,0.07724389]
[1768030458798,5e-07,90640.0,90639.0,0.02208]
[1768030460395,5e-07,90640.0,90639.0,0.06757776]
[1768030461055,5e-07,90640.0,90639.0,0.07724389]
[1768030461243,5e-07,90640.0,90639.0,0.12274165]
[1768030462691,5e-07,90640.0,90639.0,0.06757776]
[1768030462901,5e-07,90640.0,90639.0,0.12274165]
[1768030465731,5e-07,90640.0,90639.0,0.07724389]
[1768030465969,0.0001515,90649.0,90642.0,0.01103241]
[1768030466147,0.0001515,90649.0,90644.0,0.01103216]
[1768030466373,0.0001515,90649.0,90646.0,0.01103192]
[1768030466577,0.0001515,90649.0,90646.0,0.08827134]
[1768030466779,0.0004,90652.0,90649.0,0.04549776]
[1768030467001,0.00046996,90652.0,90649.0,0.05652932]
[1768030467194,0.00046996,90652.0,90649.0,0.04549776]
[1768030467399,0.00046996,90652.0,90648.0,0.01103168]
[1768030467764,0.00046996,90652.0,90646.0,0.02208]
[1768030467957,0.00046996,90652.0,90647.0,0.0110318]
[1768030468167,0.00046996,90652.0,90646.0,0.03311192]
[1768030468604,0.0004,90655.0,90648.0,0.05652944]
[1768030468797,0.0004,90655.0,90650.0,0.04549776]
[1768030469123,0.0004,90655.0,90648.0,0.01103168]
[1768030469357,0.0004,90655.0,90646.0,0.02208]
[1768030469526,0.0004,90655.0,90651.0,0.04549776]
[1768030469903,5.8e-07,90655.0,90651.0,0.04549776]
[1768030470232,5.8e-07,90655.0,90653.0,0.04549776]
[1768030470408,0.03000058,90655.0,90653.0,0.04534676]
[1768030470599,0.0004,90657.0,90654.0,0.04549776]
[1768030471591,0.0004,90657.0,90653.0,0.03311107]
[1768030471998,0.0004,90657.0,90654.0,0.01103095]
[1768030472326,0.0002415,90658.0,90653.0,0.02208]
[1768030472914,0.00136916,90655.0,90653.0,0.02208]
[1768030473239,0.00136916,90655.0,90639.0,0.01103277]
[1768030473442,0.00136916,90649.0,90640.0,0.02208]
[1768030473672,0.03,90648.0,90640.0,0.02208]
[1768030474578,0.03,90647.0,90640.0,0.02208]